[Event "Gibraltar Challengers A 2019"]
[Site "Caleta"]
[Date "2019.01.24"]
[Round "4"]
[White "Pavlov, Egor"]
[Black "Abdulraheem Abdulrahman Akint"]
[Result "0-1"]
[ECO "A21"]
[WhiteElo "2187"]
[BlackElo "2224"]
[Annotator "NA"]
[PlyCount "60"]
[EventDate "2019.01.18"]
[EventType "swiss"]
[EventCountry "GGB"]
[SourceTitle "playchess.com"]
[Source "ChessBase"]
[SourceQuality "1"]
[TimeControl "6600+10"]

{[%evp 8,58,-2,32767,-3,32767,-16,32767,32767,32767,6,32767,0,32767,32767,-15,7,-20,32767,32767,32767,12,50,-4,18,32767,32767,32767,32767,9,20,32767,25,32767,0,-31,-37,-60,-69,-154,-149,-135,-138,-512,32767,32767,-610,-1782,32767,32767,32767,32767,-2027]} 1. c4 {[%emt 0:00:00]} e5 {[%emt 0:00:00]} 2. Nc3 {[%emt 0:00:00]} Bb4 {[%emt 0:00:05]} 3. Qb3 {[%emt 0:03:23]} a5 {[%emt 0:01:02]} 4. a3 {[%emt 0:01:24]} Bxc3 {[%emt 0:01:22]} 5. Qxc3 {[%emt 0:00:17]} d6 {[%emt 0:00:14]} 6. g3 {[%emt 0:03:49]} Ne7 {[%emt 0:01:40]} 7. Bg2 {[%emt 0:01:02]} O-O {[%emt 0:00:40]} 8. b3 {[%emt 0:03:48]} Nbc6 {[%emt 0:01:09]} 9. e3 {[%emt 0:08:37]} Bf5 {[%emt 0:01:43]} 10. e4 {[%emt 0:03:19]} Bg4 {[%emt 0:02:16]} 11. h3 {[%emt 0:02:57]} Bd7 {[%emt 0:01:51]} 12. Ne2 {[%emt 0:01:27]} Qc8 {[%emt 0:01:49]} 13. Bb2 {[%emt 0:02:55]} f5 {[%emt 0:01:23]} 14. d3 {[%emt 0:01:38]} Rf6 {[%emt 0:04:11]} 15. f3 {[%emt 0:02:50]} Qb8 {[%emt 0:01:22]} 16. O-O {[%emt 0:17:03]} Qc8 {[%emt 0:00:45]} 17. g4 {[%emt 0:01:47]} f4 {[%emt 0:07:54]} 18. b4 {[%emt 0:03:52]} Ng6 {[%emt 0:02:21]} 19. b5 {[%emt 0:01:07]} Nce7 {[%emt 0:04:07]} (19... Nd8 $1 $15) 20. d4 {[%emt 0:00:51]} c5 {[%emt 0:07:16]} 21. dxe5 {[%emt 0:03:30]} (21. bxc6 $5 Qxc6 22. h4 $16) 21... Nxe5 {[%emt 0:01:02]} 22. Rad1 {[%emt 0:06:29]} N7g6 {[%emt 0:02:28]} 23. g5 {[%emt 0:03:44] [#]} (23. Qc1 $11) 23... Rf7 $1 {[%emt 0:07:54]} 24. Rxd6 {[%emt 0:11:55]} Bxh3 {[%emt 0:08:50]} 25. Rd5 $2 {[%emt 0:01:07]} (25. Kh2 $17 {is a better chance.} Be6 26. Rfd1 Nxc4 27. Rxe6 Nxb2 28. Rdd6) 25... Nh4 {[%emt 0:09:54]} 26. Nxf4 {[%emt 0:15:25]} Bxg2 {[%emt 0:01:55]} 27. Nxg2 {[%emt 0:06:45]} Nhxf3+ {[%emt 0:05:25]} 28. Rxf3 {[%emt 0:01:12]} Nxf3+ {[%emt 0:00:13]} 29. Kf2 {[%emt 0:00:52]} Nd4+ $19 {[%emt 0:00:33]} 30. Ke1 {[%emt 0:00:48]} Qg4 {[%emt 0:01:00]} 0-1

[Event "Gibraltar Challengers A 2019"]
[Site "Caleta"]
[Date "2019.01.24"]
[Round "4"]
[White "Lacrosse, Marc"]
[Black "Castrillon Gomez, Melissa"]
[Result "1/2-1/2"]
[ECO "A90"]
[WhiteElo "2182"]
[BlackElo "2244"]
[Annotator "NA"]
[PlyCount "93"]
[EventDate "2019.01.18"]
[EventType "swiss"]
[EventCountry "GGB"]
[SourceTitle "playchess.com"]
[Source "ChessBase"]
[SourceQuality "1"]
[TimeControl "6600+10"]

1. d4 {[%emt 0:03:06]} d5 {[%emt 0:01:52]} 2. c4 {[%emt 0:00:06]} e6 {[%emt 0:00:05]} 3. Nf3 {[%emt 0:00:34]} c6 {[%emt 0:01:59]} 4. Qc2 {[%emt 0:01:10]} f5 {[%emt 0:00:15]} 5. g3 {[%emt 0:01:35]} Nf6 {[%emt 0:00:17]} 6. Bg2 {[%emt 0:00:07]} Bd6 {[%emt 0:01:25]} 7. O-O {[%emt 0:00:26]} O-O {[%emt 0:03:00]} 8. b3 {[%emt 0:02:09]} Qe7 {[%emt 0:01:03]} 9. Bb2 {[%emt 0:00:27]} Ne4 {[%emt 0:06:55]} 10. Nbd2 {[%emt 0:02:49]} Nd7 {[%emt 0:00:32]} 11. Ne5 {[%emt 0:05:47] LiveBook: 15 Games} a5 {[%emt 0:12:28]} 12. Rad1 {[%emt 0:09:00]} Nxe5 {[%emt 0:12:02]} 13. dxe5 {[%emt 0:00:07]} Bc5 {[%emt 0:00:22]} 14. e3 {[%emt 0:03:53]} Bd7 {[%emt 0:14:06]} 15. Rc1 {[%emt 0:08:35]} Bb4 {[%emt 0:02:24]} 16. Nxe4 {[%emt 0:18:42]} fxe4 {[%emt 0:00:07]} 17. Rfd1 {[%emt 0:02:56]} Be8 {[%emt 0:02:05]} 18. c5 {[%emt 0:03:34]} a4 {[%emt 0:01:41]} 19. Rd4 {[%emt 0:01:38]} axb3 {[%emt 0:01:12]} 20. axb3 {[%emt 0:05:35]} Ba3 {[%emt 0:02:01]} 21. Ra1 {[%emt 0:04:26]} Bxb2 {[%emt 0:01:20]} 22. Rxa8 {[%emt 0:00:08]} Bxd4 {[%emt 0:00:05]} 23. exd4 {[%emt 0:00:11]} Qg5 {[%emt 0:03:41]} 24. Qc3 {[%emt 0:02:10]} Qh5 {[%emt 0:07:52]} 25. Qd2 {[%emt 0:02:06]} h6 {[%emt 0:03:46]} 26. h4 {[%emt 0:05:09]} Qf5 {[%emt 0:03:12]} 27. Rb8 {[%emt 0:01:19]} Kh7 {[%emt 0:06:11] [#]} 28. Qf4 $1 {[%emt 0:03:15]} g5 {[%emt 0:06:41]} 29. Rxb7+ {[%emt 0:02:10]} Rf7 {[%emt 0:00:13]} 30. Rxf7+ {[%emt 0:01:10]} Bxf7 {[%emt 0:00:03]} 31. Qxf5+ {[%emt 0:03:32]} exf5 {[%emt 0:00:02]} 32. hxg5 {[%emt 0:00:11]} hxg5 {[%emt 0:00:01]} 33. f4 {[%emt 0:02:38]} Kg6 {[%emt 0:04:10]} 34. Bf1 {[%emt 0:00:46]} Be6 {[%emt 0:01:49]} 35. Kf2 {[%emt 0:00:35]} g4 {[%emt 0:03:50] [#]} 36. b4 $2 {[%emt 0:01:13]} (36. Ba6 $1 $18 {is the precise move to win.} Bd7 37. Bb7) 36... Kf7 {[%emt 0:01:21]} 37. b5 {[%emt 0:01:24]} cxb5 {[%emt 0:00:07]} 38. Bxb5 {[%emt 0:00:03]} Ke7 {[%emt 0:00:10]} 39. Ke3 {[%emt 0:00:15]} Kd8 {[%emt 0:02:01]} 40. Kd2 {[%emt 0:00:37]} Bd7 {[%emt 0:00:13]} 41. Bxd7 {[%emt 0:04:33]} Kxd7 {[%emt 0:00:01]} 42. Kc3 {[%emt 0:00:31]} Kd8 {[%emt 0:00:21]} 43. Kb3 {[%emt 0:01:16]} Ke7 $2 {[%emt 0:02:47]} (43... Kd7 $14 44. Kb4 Kd8) 44. c6 {[%emt 0:01:45]} Ke6 {[%emt 0:00:21]} 45. Kb4 {[%emt 0:01:40]} Ke7 {[%emt 0:00:01]} 46. Kc3 {[%emt 0:00:53]} Ke6 {[%emt 0:00:12]} 47. Kb4 {[%emt 0:00:16]} 1/2-1/2

[Event "Gibraltar Challengers A 2019"]
[Site "Caleta"]
[Date "2019.01.24"]
[Round "4"]
[White "Lim, Zhuo Ren"]
[Black "Maisuradze, Nino"]
[Result "1-0"]
[ECO "A26"]
[WhiteElo "2178"]
[BlackElo "2215"]
[Annotator "NA"]
[PlyCount "173"]
[EventDate "2019.01.18"]
[EventType "swiss"]
[EventCountry "GGB"]
[SourceTitle "playchess.com"]
[Source "ChessBase"]
[SourceQuality "1"]
[TimeControl "6600+10"]

1. c4 {[%emt 0:00:00]} e5 {[%emt 0:02:39]} 2. g3 {[%emt 0:01:05]} Nc6 {[%emt 0:04:56]} 3. Bg2 {[%emt 0:00:36]} g6 {[%emt 0:02:06]} 4. Nc3 {[%emt 0:01:38]} Bg7 {[%emt 0:00:08]} 5. Nf3 {[%emt 0:01:24]} Nge7 {[%emt 0:02:44]} 6. O-O {[%emt 0:00:23]} d6 {[%emt 0:04:24]} 7. d3 {[%emt 0:00:14]} h6 {[%emt 0:02:25]} 8. Rb1 {[%emt 0:05:01]} a5 {[%emt 0:03:23]} 9. a3 {[%emt 0:00:58]} Be6 {[%emt 0:04:16]} 10. b4 {[%emt 0:01:07] A26: English Opening vs King's Indian with ...Nc6 and d3} axb4 {[%emt 0:03:33]} 11. axb4 {[%emt 0:00:09]} O-O {[%emt 0:02:45]} 12. b5 {[%emt 0:00:49] LiveBook: 11 Games} Na5 {[%emt 0:01:46]} (12... Nd4 13. Nxd4 exd4 14. Nd5 Nxd5 15. cxd5 Bd7 16. Rb4 b6 17. Bb2 Ra5 18. Bxd4 Bxd4 19. Rxd4 Bxb5 {½-½ (34) Bacrot,E (2718)-Fontaine,R (2563) chess.com INT 2018}) 13. Nd2 {[%emt 0:06:49]} e4 $146 {[%emt 0:21:43]} ({Predecessor:} 13... d5 14. Ba3 dxc4 15. dxc4 Re8 16. Qc1 Nxc4 17. Nxc4 Bxc4 18. Bxb7 {1-0 (25) Cruz,J (2459)-Aubry,Y (2251) Barcelona 2014}) 14. Qc2 {[%emt 0:20:37]} exd3 {[%emt 0:02:57]} 15. Qxd3 {[%emt 0:00:19]} Rb8 {[%emt 0:24:01]} 16. Bb2 {[%emt 0:01:01]} c6 {[%emt 0:17:32]} 17. Rfc1 {[%emt 0:02:58]} (17. Nce4 $16) 17... d5 $1 {[%emt 0:06:36]} 18. cxd5 {[%emt 0:01:09]} cxd5 {[%emt 0:00:01]} 19. e4 {[%emt 0:00:52]} dxe4 {[%emt 0:02:12]} 20. Qxd8 {[%emt 0:00:02]} Rfxd8 {[%emt 0:01:24]} 21. Ncxe4 {[%emt 0:00:20]} f5 {[%emt 0:00:59]} 22. Bxg7 {[%emt 0:00:59]} Kxg7 {[%emt 0:00:45]} 23. Nc5 {[%emt 0:00:03]} Bf7 {[%emt 0:00:20]} 24. Nf1 {[%emt 0:03:29]} b6 {[%emt 0:00:02]} 25. Na6 {[%emt 0:00:21]} Rbc8 26. Ne3 {[%emt 0:00:42]} Nb3 {[%emt 0:00:04]} 27. Rxc8 {[%emt 0:00:25]} Rxc8 {[%emt 0:00:01]} 28. Rd1 {[%emt 0:01:06]} Rc1 {[%emt 0:00:20]} 29. Rxc1 {[%emt 0:02:44]} Nxc1 {[%emt 0:00:00]} 30. Nc7 {[%emt 0:00:10]} Ne2+ {[%emt 0:00:09]} 31. Kf1 {[%emt 0:00:23]} Nd4 {[%emt 0:00:04]} 32. Bb7 {[%emt 0:00:49]} Kf8 {[%emt 0:00:14]} 33. Ba6 {[%emt 0:00:44]} Be8 $2 {[%emt 0:00:44]} (33... g5 $11) 34. Nc4 {[%emt 0:02:22]} f4 {[%emt 0:00:09]} 35. Nxb6 {[%emt 0:00:16]} Nef5 {[%emt 0:00:10]} 36. Nbd5 {[%emt 0:01:33]} f3 $2 {[%emt 0:00:13]} (36... fxg3 37. fxg3 (37. hxg3 Nd6 $16) 37... Nd6) 37. Nxe8 {[%emt 0:01:06]} Kxe8 {[%emt 0:00:01]} 38. b6 {[%emt 0:00:08]} Kd8 {[%emt 0:00:05]} 39. Bd3 {[%emt 0:01:42]} Kc8 {[%emt 0:00:17]} 40. Ba6+ {[%emt 0:01:12]} Kb8 {[%emt 0:00:05]} 41. g4 {[%emt 0:01:51]} Nd6 {[%emt 0:00:02]} 42. Ne7 {[%emt 0:00:11]} g5 {[%emt 0:00:15]} 43. Ng8 {[%emt 0:00:30]} Nf7 {[%emt 0:00:23]} 44. h3 {[%emt 0:00:09]} Nc6 {[%emt 0:00:09]} 45. Bc4 {[%emt 0:00:22]} Nfe5 {[%emt 0:00:13]} 46. Bd5 {[%emt 0:02:35]} Kb7 {[%emt 0:00:06]} 47. Nxh6 {[%emt 0:00:04]} Kxb6 {[%emt 0:00:00]} 48. Kg1 {[%emt 0:01:16]} Nd4 {[%emt 0:00:12]} 49. Nf7 {[%emt 0:01:03]} Nxf7 {[%emt 0:00:17]} (49... Kc5 $16) 50. Bxf7 {[%emt 0:00:02]} Kc5 {[%emt 0:00:04]} 51. Kh2 {[%emt 0:00:32]} Ne2 {[%emt 0:00:08]} 52. h4 {[%emt 0:00:35]} gxh4 {[%emt 0:00:03]} 53. Kh3 {[%emt 0:00:02]} Kd4 {[%emt 0:00:17]} 54. Kxh4 {[%emt 0:00:14]} Ke5 {[%emt 0:00:04]} 55. g5 {[%emt 0:02:21]} Nc3 {[%emt 0:00:03] [#]} 56. g6 $1 {[%emt 0:01:48]} Kf6 {[%emt 0:00:01]} 57. Kg3 {[%emt 0:00:12]} Ne4+ {[%emt 0:00:04]} 58. Kxf3 {[%emt 0:00:06]} Nd6 {[%emt 0:00:30]} 59. Kf4 {[%emt 0:00:20]} Nc8 {[%emt 0:00:19]} 60. Ke4 {[%emt 0:03:02]} Nd6+ $1 {[%emt 0:00:01]} 61. Kd5 $2 {[%emt 0:00:03]} (61. Kf3 $18 {is more deadly.}) 61... Nf5 {[%emt 0:00:19]} 62. Ke4 {[%emt 0:00:26]} (62. f3 $16) 62... Nd6+ {[%emt 0:00:09]} 63. Kd4 {[%emt 0:00:02]} Nf5+ {[%emt 0:00:06]} 64. Kd5 {[%emt 0:00:38]} Ne7+ {[%emt 0:00:23]} 65. Kd6 {[%emt 0:01:42]} Nf5+ {[%emt 0:00:02]} 66. Kd5 {[%emt 0:01:02]} Ne7+ {[%emt 0:00:01]} 67. Ke4 {[%emt 0:00:02]} Nc8 {[%emt 0:00:02]} 68. Kf3 {[%emt 0:00:00]} Nd6 {[%emt 0:00:05]} 69. Kg4 {[%emt 0:00:00]} Ne4 {[%emt 0:00:15]} 70. f3 {[%emt 0:01:42]} Nd6 {[%emt 0:00:01]} 71. Kf4 {[%emt 0:00:29]} Nc8 {[%emt 0:00:08]} 72. Kg3 {[%emt 0:00:36]} Nd6 {[%emt 0:00:09]} 73. Kg4 {[%emt 0:00:10]} Nf5 {[%emt 0:00:41]} 74. Kh5 {[%emt 0:00:54]} Kg7 {[%emt 0:00:24]} 75. Kg5 {[%emt 0:01:26]} Nd4 {[%emt 0:00:09]} 76. f4 {[%emt 0:00:28]} Nf3+ {[%emt 0:00:01]} 77. Kf5 {[%emt 0:00:13]} Nh4+ {[%emt 0:00:03]} 78. Kg5 {[%emt 0:06:04]} Nf3+ {[%emt 0:00:04]} 79. Kh5 {[%emt 0:00:20]} Kf6 {[%emt 0:00:22]} 80. Bd5 {[%emt 0:02:22]} Nd4 {[%emt 0:00:01]} 81. Kh6 {[%emt 0:01:10]} Nf5+ {[%emt 0:00:01]} 82. Kh7 {[%emt 0:00:09]} Ng7 {[%emt 0:00:05]} 83. Be4 {[%emt 0:00:17]} Ne6 {[%emt 0:00:08]} 84. Kh6 {[%emt 0:01:16]} Ng7 {[%emt 0:00:14]} 85. f5 {[%emt 0:00:30]} Ne8 {[%emt 0:00:02]} 86. Bc6 {[%emt 0:00:27]} Ng7 {[%emt 0:00:01]} 87. Bd7 {[%emt 0:00:04]} 1-0

[Event "Gibraltar Challengers A 2019"]
[Site "Caleta"]
[Date "2019.01.24"]
[Round "4"]
[White "Bengherabi, Khalil"]
[Black "Erdogan, Hassan"]
[Result "1-0"]
[ECO "B27"]
[WhiteElo "2150"]
[BlackElo "1833"]
[Annotator "NA"]
[PlyCount "98"]
[EventDate "2019.01.18"]
[EventType "swiss"]
[EventCountry "GGB"]
[SourceTitle "playchess.com"]
[Source "ChessBase"]
[SourceQuality "1"]
[TimeControl "6600+10"]

1. e4 {[%emt 0:00:00]} c5 {[%emt 0:00:02]} 2. Nf3 {[%emt 0:00:00]} g6 {[%emt 0:00:05]} 3. d4 {[%emt 0:00:04]} cxd4 {[%emt 0:00:05]} 4. Qxd4 {[%emt 0:00:05]} Nf6 {[%emt 0:00:07] LiveBook: 826 Games} 5. Nc3 {[%emt 0:00:04]} Nc6 {[%emt 0:00:34]} 6. Qa4 {[%emt 0:00:05]} d6 {[%emt 0:00:34]} 7. e5 {[%emt 0:00:06]} dxe5 {[%emt 0:10:09]} 8. Nxe5 {[%emt 0:00:06]} Bd7 {[%emt 0:19:30] B27: Sicilian: 2 Nf3, unusual Black 2nd moves} 9. Nxd7 {[%emt 0:00:16]} Nxd7 {[%emt 0:01:46]} (9... Qxd7 10. Be2 Bg7 11. O-O O-O 12. Rd1 Qf5 13. Bd3 Qh5 14. Qb5 Qxb5 15. Bxb5 Nb4 16. Ba4 {1-0 (60) Guseinov,G (2664)-Gordievsky,D (2614) St Petersburg 2018}) 10. Be2 {[%emt 0:06:42]} Bg7 {[%emt 0:00:05]} 11. O-O {[%emt 0:00:06]} Nb6 {[%emt 0:02:07]} 12. Qh4 {[%emt 0:01:45]} e6 $146 {[%emt 0:00:28]} ({Predecessor:} 12... e5 13. Bg5 Qd4 14. Nb5 Qxh4 15. Bxh4 O-O 16. Nd6 {0-1 (68) Yagiz,B (1862)-Upper,J (1969) Quebec 2018}) 13. Bg5 {[%emt 0:00:20]} f6 {[%emt 0:00:43]} 14. Be3 {[%emt 0:00:08]} O-O {[%emt 0:00:33]} 15. Bc5 {[%emt 0:01:32]} Rf7 {[%emt 0:00:19]} 16. Nb5 {[%emt 0:00:42]} f5 {[%emt 0:21:00]} 17. Qxd8+ {[%emt 0:01:06]} Rxd8 {[%emt 0:00:07]} 18. Nxa7 {[%emt 0:01:28]} Na4 {[%emt 0:00:41]} 19. Nxc6 {[%emt 0:00:06]} bxc6 {[%emt 0:00:06]} 20. Ba3 {[%emt 0:01:10]} Rfd7 {[%emt 0:01:31]} 21. Bc4 {[%emt 0:00:48]} Rd2 {[%emt 0:04:09]} 22. Bxe6+ {[%emt 0:00:38]} Kh8 {[%emt 0:00:00]} 23. Rab1 {[%emt 0:00:24]} Bd4 {[%emt 0:01:40]} 24. Bb3 {[%emt 0:06:56]} Nc5 {[%emt 0:00:42]} 25. c3 {[%emt 0:03:14]} Nxb3 {[%emt 0:00:21]} 26. cxd4 {[%emt 0:25:53]} Nxd4 {[%emt 0:00:12]} 27. Rfe1 {[%emt 0:04:09]} Nc2 {[%emt 0:01:30]} 28. Be7 {[%emt 0:00:03]} Nxe1 {[%emt 0:07:24]} 29. Bxd8 {[%emt 0:00:05]} Nf3+ {[%emt 0:01:13]} 30. gxf3 {[%emt 0:00:05]} Rxd8 {[%emt 0:00:04]} 31. a4 {[%emt 0:00:23]} Ra8 {[%emt 0:00:47]} 32. Ra1 {[%emt 0:00:06]} Kg7 {[%emt 0:00:03]} 33. Kf1 {[%emt 0:00:24]} f4 {[%emt 0:00:17]} 34. Ke2 {[%emt 0:00:10]} Kf6 {[%emt 0:00:22]} 35. Kd3 {[%emt 0:00:05]} Kg5 {[%emt 0:01:49]} 36. a5 $18 {[%emt 0:00:11]} Kh4 {[%emt 0:00:01]} 37. a6 {[%emt 0:00:16]} Kh3 {[%emt 0:00:05]} 38. Ke4 {[%emt 0:00:27]} g5 {[%emt 0:00:01]} 39. Kf5 {[%emt 0:00:32]} h6 {[%emt 0:00:02]} 40. Kg6 {[%emt 0:00:29]} Kg2 {[%emt 0:00:21]} 41. Ra3 {[%emt 0:04:05]} Kxf2 {[%emt 0:00:09]} 42. Kxh6 {[%emt 0:00:08]} g4 {[%emt 0:00:06]} 43. fxg4 {[%emt 0:00:06]} f3 {[%emt 0:00:02]} 44. g5 {[%emt 0:00:10]} Ke2 {[%emt 0:01:45]} 45. b4 {[%emt 0:02:17]} f2 {[%emt 0:01:09]} 46. Ra2+ {[%emt 0:00:04]} Ke3 {[%emt 0:00:27]} 47. Rxf2 {[%emt 0:00:14]} Kxf2 {[%emt 0:00:02]} 48. g6 {[%emt 0:00:07]} Rxa6 {[%emt 0:00:14]} 49. g7 {[%emt 0:00:20]} Ra8 {[%emt 0:04:36]} 1-0

[Event "Gibraltar Challengers A 2019"]
[Site "Caleta"]
[Date "2019.01.24"]
[Round "4"]
[White "Jordan Martinez, Miguel"]
[Black "Kukic, Boris"]
[Result "1-0"]
[ECO "C00"]
[WhiteElo "2142"]
[BlackElo "2035"]
[Annotator "NA"]
[PlyCount "57"]
[EventDate "2019.01.18"]
[EventType "swiss"]
[EventCountry "GGB"]
[SourceTitle "playchess.com"]
[Source "ChessBase"]
[SourceQuality "1"]
[TimeControl "6600+10"]

1. e4 {[%emt 0:00:00]} e6 {[%emt 0:00:52]} 2. b3 {[%emt 0:00:11]} d5 {[%emt 0:02:07]} 3. Bb2 {[%emt 0:00:05]} Nc6 {[%emt 0:00:21]} 4. Bb5 {[%emt 0:02:51]} Bd7 {[%emt 0:00:07]} 5. exd5 {[%emt 0:06:23]} exd5 {[%emt 0:00:08]} 6. Qf3 {[%emt 0:00:42]} a6 {[%emt 0:02:10]} 7. Be2 {[%emt 0:04:01]} Be6 {[%emt 0:00:19]} 8. Nh3 {[%emt 0:01:16]} Nf6 {[%emt 0:00:18]} 9. Nf4 {[%emt 0:05:32]} Be7 {[%emt 0:00:41]} 10. h3 {[%emt 0:03:31]} Nb4 {[%emt 0:01:15]} 11. Na3 {[%emt 0:00:57]} Qd6 {[%emt 0:00:12]} 12. c3 {[%emt 0:08:59]} Nc6 $11 {[%emt 0:00:07]} 13. d4 {[%emt 0:00:09]} Ne4 {[%emt 0:00:41]} 14. Nc2 {[%emt 0:02:14]} Bf6 {[%emt 0:05:12]} 15. Nh5 {[%emt 0:02:53]} O-O-O {[%emt 0:02:45]} 16. Nxf6 {[%emt 0:01:10]} gxf6 {[%emt 0:02:20]} 17. O-O-O {[%emt 0:12:17]} f5 {[%emt 0:00:51]} 18. Rhe1 {[%emt 0:11:32]} Rhg8 {[%emt 0:00:29]} 19. Bf1 {[%emt 0:00:32]} Qe7 {[%emt 0:00:41]} 20. Qf4 {[%emt 0:00:58]} Qg5 {[%emt 0:02:15]} 21. Qxg5 {[%emt 0:02:11]} Rxg5 {[%emt 0:00:09]} 22. Re2 {[%emt 0:02:14]} Rdg8 {[%emt 0:01:28]} 23. Ne1 {[%emt 0:02:06]} Rh5 {[%emt 0:01:01]} 24. Nd3 {[%emt 0:03:27]} Ne7 {[%emt 0:01:32]} 25. Nf4 {[%emt 0:02:52]} Rh6 {[%emt 0:00:12]} 26. Kc2 {[%emt 0:00:36]} Ng6 {[%emt 0:00:13]} 27. Bc1 {[%emt 0:00:32]} Kd7 {[%emt 0:00:53]} 28. Nxe6 {[%emt 0:00:45]} fxe6 {[%emt 0:00:17]} 29. Bxh6 {[%emt 0:00:06]} 1-0

[Event "Gibraltar Challengers A 2019"]
[Site "Caleta"]
[Date "2019.01.24"]
[Round "4"]
[White "Ramasindraibe, Girard"]
[Black "Tovarek, Antonin"]
[Result "1-0"]
[ECO "A26"]
[WhiteElo "2129"]
[BlackElo "1995"]
[Annotator "NA"]
[PlyCount "71"]
[EventDate "2019.01.18"]
[EventType "swiss"]
[EventCountry "GGB"]
[SourceTitle "playchess.com"]
[Source "ChessBase"]
[SourceQuality "1"]
[TimeControl "6600+10"]

1. c4 {[%emt 0:00:00]} e5 {[%emt 0:00:20]} 2. Nc3 {[%emt 0:01:12]} Nc6 {[%emt 0:00:11]} 3. g3 {[%emt 0:01:46]} g6 {[%emt 0:00:04]} 4. Bg2 {[%emt 0:00:16]} Bg7 {[%emt 0:00:01]} 5. Nf3 {[%emt 0:01:00]} d6 {[%emt 0:00:59]} 6. d3 {[%emt 0:01:25]} Nge7 {[%emt 0:01:01]} 7. Rb1 {[%emt 0:00:48]} O-O {[%emt 0:00:56]} 8. O-O {[%emt 0:00:09]} h6 {[%emt 0:01:58]} 9. Bd2 {[%emt 0:01:05]} Be6 {[%emt 0:01:57]} 10. b4 {[%emt 0:00:35]} Qc8 {[%emt 0:02:39]} 11. Re1 {[%emt 0:03:03]} f5 {[%emt 0:03:09]} 12. Qc1 {[%emt 0:06:20]} Kh7 {[%emt 0:00:31]} 13. b5 {[%emt 0:00:06]} Nd8 {[%emt 0:04:19]} 14. Nh4 {[%emt 0:09:32]} Nf7 {[%emt 0:17:23]} 15. a4 $11 {[%emt 0:00:24]} ({Better is} 15. Nd5 $14 Bxd5 16. cxd5) 15... g5 {[%emt 0:02:39]} 16. Nf3 {[%emt 0:00:13]} g4 {[%emt 0:08:05]} 17. Nh4 {[%emt 0:00:32]} Bf6 {[%emt 0:00:06]} 18. a5 {[%emt 0:07:48]} Rb8 {[%emt 0:01:19]} 19. Nd5 {[%emt 0:06:09]} Bxh4 {[%emt 0:05:07]} 20. gxh4 {[%emt 0:00:00]} Ng8 {[%emt 0:08:59]} 21. c5 {[%emt 0:14:02]} Bxd5 {[%emt 0:06:45]} 22. Bxd5 {[%emt 0:00:17]} Qd8 {[%emt 0:09:51]} 23. cxd6 {[%emt 0:03:34]} cxd6 {[%emt 0:00:00]} 24. b6 {[%emt 0:02:39]} axb6 {[%emt 0:00:00]} 25. Rxb6 {[%emt 0:05:49]} Qxh4 {[%emt 0:05:47]} 26. Qc7 {[%emt 0:10:47]} Rbc8 {[%emt 0:09:08]} 27. Qxb7 {[%emt 0:00:00]} Ne7 {[%emt 0:00:10]} 28. Bxf7 {[%emt 0:00:00]} Rxf7 {[%emt 0:00:06]} 29. Rxd6 {[%emt 0:00:13]} f4 {[%emt 0:09:24]} 30. Qe4+ {[%emt 0:00:00]} Rf5 {[%emt 0:03:48]} 31. Re6 {[%emt 0:06:28]} Rg8 {[%emt 0:00:00]} 32. Rxe7+ {[%emt 0:00:00]} Qxe7 {[%emt 0:00:00]} 33. Qxf5+ {[%emt 0:00:00]} Rg6 {[%emt 0:00:57]} 34. Rc1 {[%emt 0:00:00]} g3 {[%emt 0:00:00]} 35. Rc6 {[%emt 0:00:00]} gxh2+ {[%emt 0:05:32]} 36. Kh1 {[%emt 0:00:00]} 1-0

[Event "Gibraltar Challengers A 2019"]
[Site "Caleta"]
[Date "2019.01.24"]
[Round "4"]
[White "Alarcon Olmos, Daniel"]
[Black "Skutta, Bernd"]
[Result "0-1"]
[ECO "C20"]
[WhiteElo "2124"]
[BlackElo "1988"]
[Annotator "NA"]
[PlyCount "82"]
[EventDate "2019.01.18"]
[EventType "swiss"]
[EventCountry "GGB"]
[SourceTitle "playchess.com"]
[Source "ChessBase"]
[SourceQuality "1"]
[TimeControl "6600+10"]

1. e4 {[%emt 0:00:00]} d6 {[%emt 0:15:36]} 2. c4 {[%emt 0:00:33]} e5 {[%emt 0:01:25]} 3. Ne2 {[%emt 0:00:25]} c5 {[%emt 0:03:49]} 4. g3 {[%emt 0:00:12]} Bg4 {[%emt 0:01:02]} 5. Bg2 {[%emt 0:00:27]} Qd7 {[%emt 0:00:24]} 6. h3 {[%emt 0:01:04]} Be6 {[%emt 0:00:59]} 7. d3 {[%emt 0:00:16]} Nc6 {[%emt 0:02:10]} 8. Nbc3 {[%emt 0:00:02]} Nge7 {[%emt 0:04:20]} 9. Nd5 {[%emt 0:02:37]} Nd4 {[%emt 0:04:44]} 10. Nxd4 {[%emt 0:03:53]} exd4 {[%emt 0:00:41]} 11. f4 {[%emt 0:02:17]} f5 {[%emt 0:02:31]} 12. g4 {[%emt 0:09:21]} fxg4 {[%emt 0:13:42]} 13. f5 {[%emt 0:00:17]} Bxd5 {[%emt 0:02:32]} 14. cxd5 {[%emt 0:00:06]} g3 {[%emt 0:02:44]} 15. h4 {[%emt 0:20:40]} Ng8 {[%emt 0:02:12]} 16. Bf4 $14 {[%emt 0:01:21]} Be7 {[%emt 0:02:14]} 17. Bxg3 {[%emt 0:12:40]} Nh6 {[%emt 0:05:52]} 18. Bf4 {[%emt 0:12:19]} Nf7 {[%emt 0:02:03]} 19. Bf3 {[%emt 0:10:05]} Qd8 {[%emt 0:09:24]} 20. Qa4+ {[%emt 0:00:31]} Qd7 {[%emt 0:01:53]} 21. Qb3 {[%emt 0:01:49]} O-O {[%emt 0:12:21]} 22. Qc2 {[%emt 0:03:43]} Bf6 {[%emt 0:00:46]} 23. Bh5 {[%emt 0:05:58]} Ne5 {[%emt 0:01:17]} 24. Rd1 {[%emt 0:04:06]} b5 {[%emt 0:01:10]} 25. Bxe5 {[%emt 0:06:06]} Bxe5 {[%emt 0:00:03]} 26. Qf2 {[%emt 0:02:47]} Rac8 {[%emt 0:02:31]} 27. Rg1 {[%emt 0:02:15]} c4 {[%emt 0:03:05]} 28. Bg4 {[%emt 0:02:49]} Bf6 {[%emt 0:00:15]} 29. dxc4 {[%emt 0:01:01]} Rxc4 {[%emt 0:00:30]} 30. b3 {[%emt 0:00:39]} Rc3 {[%emt 0:00:50]} 31. Rxd4 {[%emt 0:00:09]} Qd8 {[%emt 0:00:25]} 32. Kd2 {[%emt 0:00:30]} Qa5 {[%emt 0:01:04]} 33. Kd1 {[%emt 0:01:53]} Rfc8 {[%emt 0:00:29]} 34. Rd2 {[%emt 0:00:10]} Bxh4 {[%emt 0:04:01]} 35. Qxh4 {[%emt 0:01:40]} Rc1+ {[%emt 0:00:02]} 36. Ke2 {[%emt 0:00:00]} Rxg1 {[%emt 0:00:06]} 37. Bf3 {[%emt 0:00:36]} Rcc1 {[%emt 0:01:14]} 38. f6 {[%emt 0:00:49]} gxf6 {[%emt 0:01:14]} 39. Bg4 {[%emt 0:00:08]} Rg2+ {[%emt 0:00:55]} 40. Kf3 {[%emt 0:00:16]} Qxd2 {[%emt 0:00:14]} 41. Be6+ Kg7 {[%emt 0:00:02]} 0-1